Cogmind - Beta 15 *** ADVENTURER MODE // 2025.05.29 @ 12:57:33 Player: LegoMDS Result: Destroyed by Optimus with Helical Railgun Performance ------------- Evolutions (0) 0 Regions Visited (3) 600 Robots Destroyed (3) 15 Value Destroyed (71) 71 Prototype IDs (6) 120 Alien Tech Used (0) 0 Bonus (278) 278 TOTAL SCORE: 1084 Bonus ------- Registered with UFD 300 Met Optimus in HQ 500 Friendly Fire -522 Cogmind --------- Core Integrity 0/250 Matter 300/300 Energy 68/100 System Corruption 0% Temperature Cool (72) Movement Core (50) Location -8/Scraptown Parts ------- > --- POWER (1) -------- (None) > --- PROPULSION (2) --- (None) > --- UTILITY (2) ------ Advanced Targeting Computer > --- WEAPON (2) ------- (None) > --- INVENTORY (5) ---- Improved Heat Sink Multitool Peak State ------------ > --- POWER ------------ Ion Engine > --- PROPULSION ------- VTOL Module Cesium-ion Thruster > --- UTILITY ---------- Advanced Targeting Computer Improved Propulsion Shielding > --- WEAPON ----------- High-powered Shotgun Coil Gun > --- INVENTORY -------- Cesium-ion Thruster Improved Heat Sink CPS Tube Multitool [Rating: 21] Favorites ----------- Power Ion Engine Engine Ion Engine Propulsion Aluminum Leg Leg Aluminum Leg Flight Unit VTOL Module Utility Small Storage Unit Device Improved Heat Sink Storage Small Storage Unit Processor Advanced Targeting Computer Protection Improved Propulsion Shielding Weapon Assault Rifle Energy Gun Beamcaster Ballistic Gun Assault Rifle Ballistic Cannon Light Cannon Special Weapon CPS Tube Build | -11 -10 -10 -8 ------- Run | Yrd Mat Sub Scr Slots Evolved . | . . . . Power . | . . . . Propulsion . | . . . . Utility . | . . . . Weapon . | . . . . Parts Attached 19 | 6 . 1 12 Power 1 | 1 . . . Engine 1 | 1 . . . Core . | . . . . Reactor . | . . . . Propulsion 6 | 2 . . 4 Treads . | . . . . Leg 3 | 2 . . 1 Wheel . | . . . . Hover . | . . . . Flight 3 | . . . 3 Utility 5 | 1 . 1 3 Device 2 | . . 1 1 Storage 1 | 1 . . . Processor 1 | . . . 1 Hackware . | . . . . Protection 1 | . . . 1 Artifact . | . . . . Weapon 7 | 2 . . 5 Energy Gun 1 | . . . 1 Energy Cannon . | . . . . Ballistic Gun 4 | 2 . . 2 Ballistic Cannon 1 | . . . 1 Launcher . | . . . . Special Weapon 1 | . . . 1 Impact Weapon . | . . . . Slashing Weapon . | . . . . Piercing Weapon . | . . . . Special Melee Weapon . | . . . . Unidentified Prototypes . | . . . . Parts Lost 9 | . . . 9 Power 1 | . . . 1 Propulsion 3 | . . . 3 Utility 1 | . . . 1 Weapon 4 | . . . 4 Highest Loss Streak 9 | . . . 9 To Critical Strikes . | . . . . Average Backups 5 | 1 3 6 5 Power . | . 1 . . Propulsion . | . . . . Utility 2 | . . 2 2 Weapon . | . 1 2 . Tool/Special . | . . . . Unused Backups 8 | . . 3 5 Power 2 | . . 1 1 Propulsion 1 | . . 1 . Utility 2 | . . 1 1 Weapon 2 | . . . 2 Tool/Special 1 | . . . 1 Average Slot Usage (%) 96 | . 85 94 99 Engine 13 | . 14 14 13 Leg 15 | . 28 28 9 Flight 12 | . . . 18 Device 5 | . . 8 4 Storage 12 | . 14 14 11 Processor 1 | . . . 2 Protection 6 | . . . 9 Ballistic Gun 24 | . 28 28 22 Ballistic Cannon 3 | . . . 4 Peak Build Rating 21 | 6 6 10 21 Average Rating 13 | 4 6 8 16 On Entrance 5 | . 6 6 10 Naked Turns . | . . . . Heaviest Build 20 | 13 13 14 20 Greatest Support 25 | 20 20 20 25 Greatest Overweight (x) 2 | . . . 2 Average Overweight (x) . | . . . . Largest Inventory Capacity 8 | 8 8 8 8 Average Capacity 7 | 6 8 8 7 Most Carried 8 | 5 5 8 8 Average Carried 6 | 1 3 7 7 Final Capacity 8 | 8 8 8 5 Final Carried 8 | 1 5 8 2 Class Distribution -------------------- 100% | Mutant Dominant Class ---------------- Mutant | -10/Materials Mutant | -10/Subcaves Mutant | -8/Scraptown Resources | -11 -10 -10 -8 ----------- Run | Yrd Mat Sub Scr Matter Collected 437 | 221 51 32 133 Remotely . | . . . . Salvage Created 84 | . 25 12 47 Parts 8 | . 2 3 3 Haulers Intercepted . | . . . . Recyclers Shooed . | . . . . Parts Field Recycled . | . . . . Retrieved Matter . | . . . . Parts Self-Destructed 14 | . . 14 . Prevented . | . . . . Kills | -11 -10 -10 -8 ------- Run | Yrd Mat Sub Scr Combat Hostiles Destroyed 2 | . . 1 1 Guns 2 | . . 1 1 Classes Destroyed 3 | . 1 1 1 Watcher 1 | . 1 . . Swarmer 1 | . . 1 . Ranger 1 | . . . 1 Best Kill Streak 1 | . 1 1 1 Combat Bots Only 1 | . . 1 1 Max Kills in Single Turn 1 | . 1 1 1 Gunslinging . | . . . . Exploded . | . . . . Melee . | . . . . Uniques/NPCs Destroyed . | . . . . Combat | -11 -10 -10 -8 -------- Run | Yrd Mat Sub Scr Hostile Shots Fired 64 | . . 8 56 Missed 21 | . . 5 16 Hits 43 | . . 3 40 Projectile 43 | . . 3 40 Critical Strikes 2 | . . . 2 Damage Taken 842 | . 28 26 788 Core 255 | . . 7 248 Absorbed by Shields . | . . . . Redirected to Shielding 95 | . . . 95 Ignored by Resistances 232 | . 8 8 216 Core Remaining (%) 100 | 100 . . . Volleys Fired 20 | 1 2 6 11 Largest 2 | 2 2 2 2 Hottest 75 | 40 40 40 75 Shots Fired 35 | 2 4 12 17 Gun 34 | 2 4 12 16 Cannon . | . . . . Launcher . | . . . . Special 1 | . . . 1 Kinetic 30 | 2 4 12 12 Thermal 4 | . . . 4 Explosive . | . . . . Electromagnetic . | . . . . Robot Hit Streak 10 | 2 2 8 10 Robot Miss Streak 2 | . 2 1 2 Penetration Max 1 | . . . 1 Secondary Targets 1 | . . 1 . Max Gunslinging Chain 1 | . . 1 . Shots Hit Robots 31 | 2 2 11 16 Core Hits 8 | 1 1 3 3 Critical Kills . | . . . . Critical Parts Destroyed . | . . . . Critical Strikes . | . . . . Melee Attacks . | . . . . Impact . | . . . . Slashing . | . . . . Piercing . | . . . . Sneak Attacks . | . . . . Combat Hostiles . | . . . . Follow-up Attacks . | . . . . Damage Inflicted 469 | 22 21 106 320 Guns 469 | 22 21 106 320 Cannons . | . . . . Explosions . | . . . . Melee . | . . . . Ramming . | . . . . Kinetic 386 | 22 21 106 237 Thermal 83 | . . . 83 Explosive . | . . . . Electromagnetic . | . . . . Impact . | . . . . Slashing . | . . . . Piercing . | . . . . Highest Corruption . | . . . . Average Corruption . | . . . . Corruption Purged . | . . . . Corruption Blocked . | . . . . Overload Shots . | . . . . Overflow Damage . | . . . . Projectiles . | . . . . Explosions . | . . . . Melee . | . . . . Knockbacks . | . . . . Impact . | . . . . Kinetic . | . . . . Secondary . | . . . . Self-Inflicted Damage . | . . . . Shots . | . . . . Rammed . | . . . . Targets Rammed . | . . . . Kicked . | . . . . Crushed . | . . . . Highest Temperature 73 | . . . 73 Average Temperature 33 | . . . 33 Received Heat Transfer 85 | . . . 85 Siege Activations . | . . . . Martial Activations . | . . . . Shielding Activations . | . . . . Robots Disrupted . | . . . . Combat Hostiles . | . . . . Robots Corrupted . | . . . . Combat Hostiles . | . . . . Parts Fried . | . . . . Impact Corruptions . | . . . . Robots Melted . | . . . . Combat Hostiles . | . . . . Parts Melted 1 | . . . 1 Heat Transferred 36 | . . . 36 Parts Sabotaged . | . . . . Parts Stolen . | . . . . Parts Stripped . | . . . . Power Chain Reactions . | . . . . Alert | -11 -10 -10 -8 ------- Run | Yrd Mat Sub Scr Maximum Alert Level . | . . . . Low Security (%) 100 | 100 100 . . Level 1 . | . . . . Level 2 . | . . . . Level 3 . | . . . . Level 4 . | . . . . Level 5 . | . . . . High Security . | . . . . Max Security . | . . . . Peak Influence 7 | . 7 . . Initial . | . . . . Average . | . . . . Influence Increases 41 | . 21 20 . Destroy 0b10 Robot/C 20 | . . 20 . Destroy 0b10 Robot/NC 5 | . 5 . . Destroy Leader 2 | . 2 . . Successful Hack 14 | . 14 . . Influence Decreases 41 | . 21 20 . Time Decay 41 | . 21 20 . Squads Dispatched . | . . . . Investigation . | . . . . Extermination . | . . . . Reinforcement . | . . . . Assault . | . . . . Garrison . | . . . . Intercept . | . . . . Searches Triggered . | . . . . Construction Impeded . | . . . . Haulers Reinforced . | . . . . Active Scanning Responses . | . . . . Cargo Convoy Interrupts . | . . . . Stealth | -11 -10 -10 -8 --------- Run | Yrd Mat Sub Scr Distress Signals . | . . . . Communications Jammed . | . . . . Distress Signals . | . . . . Times Spotted 13 | . 1 5 7 Peak Tracking Total 10 | . 1 3 10 Tactical Retreats . | . . . . Traps | -11 -10 -10 -8 ------- Run | Yrd Mat Sub Scr Traps Triggered 1 | . 1 . . Indirectly . | . . . . Trap Hack Attempts . | . . . . Triggered . | . . . . Disarmed . | . . . . Reprogrammed . | . . . . Reused 1 | . . . 1 Traps Extracted . | . . . . Installed 2 | . . . 2 Triggered . | . . . . Machines | -11 -10 -10 -8 ---------- Run | Yrd Mat Sub Scr Machines Disabled 2 | . . . 2 Max in Single Turn 1 | . . . 1 Machines Repaired . | . . . . Machines Dismantled . | . . . . Machines Sabotaged . | . . . . Overloaded Fab Kills . | . . . . Hacking | -11 -10 -10 -8 --------- Run | Yrd Mat Sub Scr Machines Accessed 9 | . 3 . 6 Terminals 3 | . 3 . . Fabricators . | . . . . Repair Stations . | . . . . Recycling Units . | . . . . Scanalyzers . | . . . . Garrison Access . | . . . . Total Hacks 37 | . 6 . 31 Successful 34 | . 3 . 31 Failed 3 | . 3 . . Catastrophic 2 | . 2 . . Database Lockouts . | . . . . Manual 2 | . 2 . . Terminals 6 | . 6 . . Fabricators . | . . . . Repair Stations . | . . . . Recycling Units . | . . . . Scanalyzers . | . . . . Garrison Access . | . . . . Terminal Hacks 34 | . 3 . 31 Record 24 | . . . 24 Robot Analysis 6 | . . . 6 Level Access Points 1 | . 1 . . Branch Access Points 1 | . 1 . . Locate Traps 1 | . 1 . . Proto ID Catalog 1 | . . . 1 Fabricator Hacks . | . . . . Repair Station Hacks . | . . . . Recycling Unit Hacks . | . . . . Scanalyzer . | . . . . Garrison Access Hacks . | . . . . Unauthorized Hacks . | . . . . Terminals . | . . . . Fabricators . | . . . . Repair Stations . | . . . . Recycling Units . | . . . . Scanalyzers . | . . . . Garrison Access . | . . . . Data Cores Recovered . | . . . . Used . | . . . . Hacking Detections 2 | . 2 . . Full Trace Events 1 | . 1 . . Feedback Events . | . . . . Feedback Blocked . | . . . . Robot Schematics Acquired . | . . . . Robots Built . | . . . . Authchips . | . . . . Time . | . . . . Total Robot Build Rating . | . . . . Part Schematics Acquired . | . . . . Parts Built . | . . . . Authchips . | . . . . Time . | . . . . Total Part Build Rating . | . . . . Parts Repaired . | . . . . Time . | . . . . Parts Recycled . | . . . . Recycled Matter . | . . . . Retrieved Matter . | . . . . Retrieved Components . | . . . . Parts Scanalyzed . | . . . . Part Schematics Acquired . | . . . . Parts Damaged . | . . . . Bothacking | -11 -10 -10 -8 ------------ Run | Yrd Mat Sub Scr Used RIF Installer . | . . . . Robots Hacked . | . . . . Non-combat . | . . . . Combat . | . . . . Robot Hacks Applied . | . . . . Relay Couplers Released . | . . . . Fabnet Peak Effective % . | . . . . Robots Rewired . | . . . . Allies Hacked . | . . . . Hacks Repelled . | . . . . Allies | -11 -10 -10 -8 -------- Run | Yrd Mat Sub Scr Total Allies . | . . . . Largest Group . | . . . . Highest-Rated Group . | . . . . Highest-Rated Ally . | . . . . Total Orders . | . . . . Ally Attacks . | . . . . Total Damage . | . . . . Kills . | . . . . Allies Corrupted . | . . . . Allies Melted . | . . . . Intel | -11 -10 -10 -8 ------- Run | Yrd Mat Sub Scr Active Infowar (turns) . | . . . . Robot Analysis Total 6 | . . . 6 Derelict Logs Recovered 3 | . . 1 2 Drone Launches . | . . . . Drone Recoveries . | . . . . Exploration | -11 -10 -10 -8 ------------- Run | Yrd Mat Sub Scr Turns Passed 3246 | 59 321 685 2181 Spaces Moved 2253 | 43 232 499 1479 Core 21 | 11 . . 10 Treads . | . . . . Legs 1358 | 32 232 499 595 Wheels . | . . . . Hover . | . . . . Flight 874 | . . . 874 Fastest Speed 32 | 50 120 120 32 Average Speed 134 | 102 120 120 143 Slowest Speed 195 | 120 120 120 195 Overloaded Moves . | . . . . Propulsion Burnouts . | . . . . Robots Hopped . | . . . . Potential Cave-ins . | . . . . Cave-ins Triggered . | . . . . Exploration Rate (%) 42 | 5 41 39 83 Regions Visited 3 Branch Regions 2 Pre-discovered Areas 1 | . . 1 . Known Exits Taken . | . . . . Unknown Exits Taken 3 | 1 1 1 . Scrap Searched 12 | . . 3 9 Spaces Dug . | . . . . Terrain Destroyed 1 | . . . 1 Melee . | . . . . Projectile 1 | . . . 1 AOE . | . . . . Terrain Rammed . | . . . . Walls Destroyed . | . . . . Machines Disabled . | . . . . Actions | -11 -10 -10 -8 --------- Run | Yrd Mat Sub Scr Total 2431 | 56 271 576 1528 Wait 96 | . 34 62 . Move 2250 | 42 231 498 1479 Hop . | . . . . Pick Up 26 | 7 4 6 9 Fast Attach 4 | . . . 4 Attach 13 | 6 . 1 6 Detach . | . . . . Swap 2 | . . . 2 Drop 18 | . . 3 15 Fire 20 | 1 2 6 11 Melee . | . . . . Ram . | . . . . Kick . | . . . . Crush . | . . . . Escape Stasis . | . . . . Rewire . | . . . . Trap 2 | . . . 2 Miscellaneous . | . . . . Route ------- -11/Scrapyard -10/Materials (discovered 5 exits: Mat x3 / Min / [*Sub]) -10/Subcaves (discovered 3 exits: [*Mat] / *Scr x2) -8/Scraptown (discovered 1 exit: [*Fac]) History --------- Turn | Location | Event 5 | -11/Scrapyard | Discovered new exit (range 15) 60 | -11/Scrapyard | Entered Materials 61 | -10/Materials | Met a group of wandering Federalists 89 | -10/Materials | Identified exit to Mines 159 | -10/Materials | Discovered new exit (range 3) 264 | -10/Materials | Identified exit to Materials 308 | -10/Materials | Build established: Mutant 381 | -10/Materials | Entered Subcaves 382 | -10/Subcaves | Continued accompanying wandering Federalists (5) 382 | -10/Subcaves | Approached by a straggling Scientist 768 | -10/Subcaves | Discovered new exit (range 13) 1024 | -10/Subcaves | Scientist uncovered a shortcut to Scraptown 1025 | -10/Subcaves | Shifting Twisted Machinery released Sub. Power Source 1030 | -10/Subcaves | Shifting Twisted Machinery released Sub. Laser 1066 | -10/Subcaves | Entered Scraptown 1416 | -8/Scraptown | Discovered new exit (range 11) 1440 | -8/Scraptown | Scanned Subdweller tech in exchange for log data 1443 | -8/Scraptown | Learned Factory security intel 1471 | -8/Scraptown | Visited Comm Corps 1523 | -8/Scraptown | Visited Spacefarers 1598 | -8/Scraptown | Visited Bundlers 1670 | -8/Scraptown | Visited Fellowship of the Rings 1701 | -8/Scraptown | Visited Symbiants 2250 | -8/Scraptown | Visited UFD Registry 2250 | -8/Scraptown | Registered with UFD as "Fissionwarp" 2292 | -8/Scraptown | Visited Observation Area 2390 | -8/Scraptown | Visited Assassins FH 2695 | -8/Scraptown | Visited Scrapoid Pod Storage 2730 | -8/Scraptown | Visited Analyses Database 2824 | -8/Scraptown | Delivered Scrap Shield to a Scientist 2934 | -8/Scraptown | Visited LU-1G1's Boring Crew 3020 | -8/Scraptown | Visited Science Guys 3068 | -8/Scraptown | Visited Scrap Suit Storage 3121 | -8/Scraptown | Met Optimus 3121 | -8/Scraptown | Accepted into 0bPrime 3185 | -8/Scraptown | Civil war broke out across Scraptown 3203 | -8/Scraptown | Attacked by Scraptown defenders 3216 | -8/Scraptown | Core integrity fell below 50% 3244 | -8/Scraptown | Core integrity fell below 20% 3247 | -8/Scraptown | Destroyed by Optimus with Helical Railgun Last Messages --------------- Acquired Vortex Trap. Supplies damaged. Cesium-ion Thruster destroyed. Dropped Vortex Trap. Installed Vortex Trap. Slug penetrates SG-Prototypes Database. SG-Prototypes Database disabled. Slug penetrates Machine. Optimus triggered Vortex Trap. A wave of accelerated entropy washes over the area. Machine disabled. 9N-HOE(E) destroyed. Supplies damaged. Penetrated by Slug. Slug penetrates Machine. Penetrated by Slug. Slug penetrates Earth. Beamcaster destroyed. Penetrated by Slug. Map ----- +----------------------------------------------------+ | ???? """"" "="???????????????????????????????? | | ????? *"???????????????????????????????? | | ????? "???????????????????????????????? | | ????? "#??????????????????????????????? | | ?????? "##?????????????????????????????? | | ?????? ??????????????????????????????? | | ???????""" "#??????????????????????????????? | | ??????"""" "#??????????????????????????????? | | ???????#"" "#??????????????????????????????? | | ???????#"" "#############??????????????????? | | ???????#"" "## #"""""#""#??????????????????? | | ???????#"" "## !! !! !#??????????????????? | | ?????###"" ## #??????????????????? | | ######!#"" "## #??????????????????? | | ![%! X" #??????????????????? | | [== "## ##"#??????????????????? | | #"""## #"" "## !!!!!#?????????????????????? | | ?????###"" "## #"""""#?????????????????????? | | ???????#"" "##########?????????????????????? | | ???????#"" ####???????????????????????????? | | ???????#"" ## ##??????????????????????????? | | ########"" #;;;##########?????????????????? | | """"""""" ;!! """""#?????????????????? | | """""""""" =%! """"#?????????????????? | | ! "#; * """#?????????????????? | | *%[ !!"#;!%[ @" "## ##?????????????? | | ! *% ;; ! ; #?????????????? | | !== =! ;; ; ###?????????????? | | !%[ ; 3 ""###???????????????? | | """""" "" """ ;; ""#?????????????????? | | ###### ##"### ;; ""#?????????????????? | | ?# ## #; """#?????????????????? | | ?# # # ## #; """#?????????????????? | | ?# # # ## ###;;;;;######?????????????????? | | ?# # # ## #?######???????????????????????? | | ?# ####### ## #??????????????????????????????? | | ?# ## ############???????????????????? | | ?# # """ # ## #???????????????????? | | ?# # "#" # ## ##???????????????????? | | ?# # """ # ## #???????????????????? | | ?# # # ## #???????????????????? | | ?############ #???????????????????? | | ????????????# ############???????????????????? | | ############# #####??????????????????????????? | | ""##"""##"|"# """"#??????????????????????????? | | ""##"" ##" # "" "#??????????????????????????? | | "#??????????????????????????? | | !& " "#??????????????????????????? | | ! """"#??????????????????????????? | | |"##!!%##""|## ######??????????????????????????? | +----------------------------------------------------+ Best States ------------- Heat Dissipation 39 Energy Generation 10 Energy Capacity 250 Matter Stores 300 Matter Capacity 300 Sight Range 16 Terrain Scan Density 10 Resistance: KI 20 Resistance: TH 20 Resistance: EX 20 Resistance: EM 20 Resistance: I 20 Resistance: S 20 Resistance: P 20 Propulsion Shielding 66 Evasion (%) 63 Targeting Accuracy 8 Offensive Hacking 10 Item Schematics ----------------- None Robot Schematics ------------------ None Fabricated ------------ Nothing Repaired ---------- Nothing Alien Tech Used ----------------- None Achievements -------------- None Challenges ------------ None Game ------ Seed HackingRainbowBrace Manual? 0 Play Time 00:25:42 Cumulative 74.1 hours Start 2025.05.29 @ 12:31:55 End 2025.05.29 @ 12:57:33 Sessions 1 Manual Loads 0 Difficulty Adventurer Special Mode None Game No. 95 Rogue 13 Adventurer 82 Explorer 0 Win Type - Total 0 Types 0/0/0/0/0/0/0/0/0/0 Lore% 56 Gallery% 54 Achievement% 44 Wizard Run 0 Options --------- Layout 1 ASCII 0 Keyboard 0 Movement Mouse Keybinds 0 Fullscreen 1 Font 32/SmallcapsGlow Map View 50x35 Zoom Use 0% Tactical HUD 0 Map Filters NONE Filters NONE Steam 1 RUN: bb7c1176-82e8-4c33-b6d2-84d5b343b7f0